Cogmind - Beta 17.1 @@@ ROGUE MODE // 2026.09.05 @ 18:28:01 Player: Finn Result: Destroyed by as-34067 with Assembled Blade Performance ------------- Evolutions (0) 0 Regions Visited (4) 800 Robots Destroyed (8) 40 Value Destroyed (276) 276 Prototype IDs (0) 0 Alien Tech Used (0) 0 Bonus (25) 25 TOTAL SCORE: 1141 Bonus ------- Follower Combat Kills 25 Cogmind --------- Core Integrity 0/250 Matter 96/300 Energy 100/100 System Corruption 3% Temperature Cool (0) Movement Core (150) Ox2 Location -9/Mines Parts ------- > --- POWER (1) -------- (None) > --- PROPULSION (2) --- (None) > --- UTILITY (2) ------ Small Storage Unit > --- WEAPON (2) ------- Assault Rifle > --- INVENTORY (8) ---- Improved Ion Engine Compact Wheel Flight Unit Experimental Sensor Array Light Assault Rifle Rocket Launcher Plasma Cutter Peak State ------------ > --- POWER ------------ Light Nuclear Core > --- PROPULSION ------- Compact Wheel Compact Wheel > --- UTILITY ---------- Small Storage Unit Shield Generator > --- WEAPON ----------- Assault Rifle Plasma Cutter > --- INVENTORY -------- Wheel Flight Unit Scrap Suit Structural Scanner Assault Rifle Light Assault Rifle Mining Laser [Rating: 12] Favorites ----------- Power Light Nuclear Core Engine Light Ion Engine Power Core Light Nuclear Core Propulsion Compact Wheel Wheel Compact Wheel Utility Small Storage Unit Device Shield Generator Storage Small Storage Unit Weapon Assault Rifle Ballistic Gun Assault Rifle Launcher Rocket Launcher Special Weapon Mining Laser Build | -11 -10 -10 -10 -9 ------- Run | Yrd Mat Min Exi Min Slots Evolved . | . . . . . Power . | . . . . . Propulsion . | . . . . . Utility . | . . . . . Weapon . | . . . . . Parts Attached 14 | 7 2 2 . 3 Power 2 | 1 . 1 . . Engine 1 | 1 . . . . Core 1 | . . 1 . . Reactor . | . . . . . Propulsion 3 | 2 . . . 1 Treads . | . . . . . Leg . | . . . . . Wheel 3 | 2 . . . 1 Hover . | . . . . . Flight . | . . . . . Utility 2 | 1 1 . . . Device 1 | . 1 . . . Storage 1 | 1 . . . . Processor . | . . . . . Hackware . | . . . . . Protection . | . . . . . Artifact . | . . . . . Weapon 7 | 3 1 1 . 2 Energy Gun . | . . . . . Energy Cannon . | . . . . . Ballistic Gun 3 | 3 . . . . Ballistic Cannon . | . . . . . Launcher 2 | . . . . 2 Special Weapon 2 | . 1 1 . . Impact Weapon . | . . . . . Slashing Weapon . | . . . . . Piercing Weapon . | . . . . . Special Melee Weapon . | . . . . . Unidentified Prototypes . | . . . . . Parts Lost 7 | . . . . 7 Power 1 | . . . . 1 Propulsion 2 | . . . . 2 Utility 1 | . . . . 1 Weapon 3 | . . . . 3 Highest Loss Streak 5 | . . . . 5 To Critical Strikes . | . . . . . Average Backups 5 | . 1 5 8 7 Power . | . . . 1 1 Propulsion 1 | . . 1 2 2 Utility . | . . 1 1 1 Weapon 2 | . 1 2 3 2 Tool/Special . | . . . . . Unused Backups 5 | . . 1 . 4 Power 1 | . . . . 1 Propulsion 1 | . . . . 1 Utility 3 | . . 1 . 2 Weapon . | . . . . . Tool/Special . | . . . . . Average Slot Usage (%) 94 | . 99 100 100 81 Engine 4 | . 14 7 . . Core 8 | . . 6 14 10 Wheel 25 | . 28 28 28 20 Device 12 | . 13 14 14 9 Storage 14 | . 14 14 14 14 Ballistic Gun 13 | . 14 14 14 13 Launcher 1 | . . . . 3 Special Weapon 12 | . 13 14 14 9 Peak Build Rating 12 | 6 9 12 11 11 Average Rating 9 | 3 8 10 11 9 On Entrance 7 | . 6 9 11 11 Avg Prop Armor Cover (%) . | . . . . . Naked Turns . | . . . . . Heaviest Build 15 | 12 13 15 15 15 Greatest Support 32 | 32 32 32 32 32 Greatest Overweight (x) 3 | . . . . 3 Average Overweight (x) . | . . . . . Largest Inventory Capacity 8 | 8 8 8 8 8 Average Capacity 7 | 6 8 8 8 8 Most Carried 8 | 3 3 8 8 8 Average Carried 6 | . 1 5 8 7 Final Capacity 8 | 8 8 8 8 8 Final Carried 8 | 1 2 8 8 7 Class Distribution -------------------- 100% | Mutant Dominant Class ---------------- Mutant | -10/Materials Mutant | -10/Mines Mutant | -10/Exiles Mutant | -9/Mines Resources | -11 -10 -10 -10 -9 ----------- Run | Yrd Mat Min Exi Min Matter Collected 473 | 288 20 118 . 47 Remotely . | . . . . . Salvage Created 334 | 81 . 141 . 112 Parts 17 | 4 . 9 . 4 Haulers Intercepted . | . . . . . Recyclers Shooed . | . . . . . Parts Field Recycled . | . . . . . Retrieved Matter . | . . . . . Parts Self-Destructed . | . . . . . Prevented . | . . . . . Parts Restored . | . . . . . Kills | -11 -10 -10 -10 -9 ------- Run | Yrd Mat Min Exi Min Combat Hostiles Destroyed 22 | . . 5 . 17 Guns 5 | . . 2 . 3 Cannons 4 | . . 3 . 1 AOE 13 | . . . . 13 Classes Destroyed 6 | 1 . 2 . 3 Recycler 1 | 1 . . . . Swarmer 3 | . . 3 . . Grunt 2 | . . 2 . . Brawler 1 | . . . . 1 Demolisher 1 | . . . . 1 Assembled 15 | . . . . 15 Best Kill Streak 15 | 1 . 3 . 15 Combat Bots Only 15 | . . 3 . 15 Max Kills in Single Turn 2 | 1 . 1 . 2 Gunslinging . | . . . . . Exploded 2 | . . . . 2 Melee . | . . . . . Uniques/NPCs Destroyed . | . . . . . Combat | -11 -10 -10 -10 -9 -------- Run | Yrd Mat Min Exi Min Hostile Shots Fired 65 | . . 33 . 32 Missed 23 | . . 12 . 11 Hits 42 | . . 21 . 21 Melee 7 | . . . . 7 Projectile 35 | . . 21 . 14 AOE 4 | . . . . 4 Damage Taken 715 | . . 152 . 563 Core 254 | . . 39 . 215 Absorbed by Shields 94 | . . 59 . 35 Core Remaining (%) 100 | 100 . . . . Volleys Fired 82 | 6 3 27 . 46 Largest 2 | 1 1 2 . 2 Hottest 120 | 20 20 120 . 120 Shots Fired 119 | 6 3 49 . 61 Gun 67 | 6 . 26 . 35 Cannon . | . . . . . Launcher 14 | . . . . 14 Special 38 | . 3 23 . 12 Kinetic 67 | 6 . 26 . 35 Thermal 38 | . 3 23 . 12 Explosive 14 | . . . . 14 Electromagnetic . | . . . . . Robot Hit Streak 6 | 3 4 3 . 6 Robot Miss Streak 4 | 1 . 3 . 4 Penetration Max . | . . . . . Secondary Targets . | . . . . . Shots Hit Robots 46 | 4 1 17 . 24 Core Hits 37 | 2 . 8 . 27 Critical Kills . | . . . . . Critical Parts Destroyed . | . . . . . Critical Strikes 1 | . . 1 . . Sever 1 | . . 1 . . Melee Attacks . | . . . . . Impact . | . . . . . Slashing . | . . . . . Piercing . | . . . . . Sneak Attacks . | . . . . . Combat Hostiles . | . . . . . Follow-up Attacks . | . . . . . Damage Inflicted 1428 | 49 12 209 . 1158 Guns 357 | 49 . 110 . 198 Cannons . | . . . . . Explosions 912 | . . . . 912 Melee . | . . . . . Ramming . | . . . . . Kinetic 357 | 49 . 110 . 198 Thermal 159 | . 12 99 . 48 Explosive 912 | . . . . 912 Electromagnetic . | . . . . . Impact . | . . . . . Slashing . | . . . . . Piercing . | . . . . . Highest Corruption 3 | . . . . 3 Average Corruption 3 | . . . . 3 Corruption Purged . | . . . . . Corruption Blocked . | . . . . . Effects 3 | . . . . 3 Message Errors 1 | . . . . 1 Energy Discharges 1 | . . . . 1 Data Loss (minor) 1 | . . . . 1 Overload Shots . | . . . . . Overflow Damage 9 | . . . . 9 Projectiles . | . . . . . Explosions 9 | . . . . 9 Melee . | . . . . . Knockbacks . | . . . . . Impact . | . . . . . Kinetic . | . . . . . Secondary . | . . . . . Self-Inflicted Damage 40 | . . . . 40 Shots 1 | . . . . 1 Rammed . | . . . . . Targets Rammed . | . . . . . Kicked . | . . . . . Crushed . | . . . . . Highest Temperature 120 | . . 74 . 120 Average Temperature 40 | . . 31 . 43 Received Heat Transfer 52 | . . 46 . 6 Siege Activations . | . . . . . Martial Activations . | . . . . . Shielding Activations . | . . . . . Robots Disrupted . | . . . . . Combat Hostiles . | . . . . . Robots Corrupted . | . . . . . Combat Hostiles . | . . . . . Parts Fried . | . . . . . Impact Corruptions . | . . . . . Robots Melted . | . . . . . Combat Hostiles . | . . . . . Parts Melted . | . . . . . Heat Transferred 470 | . 37 333 . 100 Parts Sabotaged . | . . . . . Parts Stolen . | . . . . . Parts Stripped . | . . . . . Power Chain Reactions . | . . . . . Alert | -11 -10 -10 -10 -9 ------- Run | Yrd Mat Min Exi Min Maximum Alert Level . | . . . . . Low Security (%) 100 | 100 100 100 . 100 Level 1 . | . . . . . Level 2 . | . . . . . Level 3 . | . . . . . Level 4 . | . . . . . Level 5 . | . . . . . High Security . | . . . . . Max Security . | . . . . . Peak Influence 76 | 5 20 76 . 62 Initial 1 | . . 1 . . Average 10 | . 3 15 . 8 Influence Increases 383 | 5 75 169 . 134 Destroy 0b10 Robot/C 160 | . . 100 . 60 Destroy 0b10 Robot/NC 5 | 5 . . . . Destroy Leader 30 | . . 20 . 10 Allied During Kill 7 | . . . . 7 Disable Machine 105 | . 75 15 . 15 Destroy Structure 31 | . . 4 . 27 Partial Spotted 15 | . . . . 15 Lose Combat Pursuer 30 | . . 30 . . Influence Decreases 383 | 5 70 174 . 134 Entered New Map 4 | . . 4 . . Time Decay 326 | 5 70 170 . 81 Lost Part 18 | . . . . 18 Lost Ally 35 | . . . . 35 Squads Dispatched 2 | . 2 . . . Investigation 1 | . 1 . . . Extermination . | . . . . . Reinforcement 1 | . 1 . . . Assault . | . . . . . Garrison . | . . . . . Intercept . | . . . . . Searches Triggered . | . . . . . Construction Impeded . | . . . . . Haulers Reinforced . | . . . . . Active Scanning Responses . | . . . . . Cargo Convoy Interrupts . | . . . . . Stealth | -11 -10 -10 -10 -9 --------- Run | Yrd Mat Min Exi Min Distress Signals . | . . . . . Communications Jammed . | . . . . . Distress Signals . | . . . . . Times Spotted 29 | . 2 7 . 20 Peak Tracking Total 5 | . 1 3 . 5 Tactical Retreats 2 | . . 2 . . Traps | -11 -10 -10 -10 -9 ------- Run | Yrd Mat Min Exi Min Traps Triggered . | . . . . . Indirectly . | . . . . . Trap Hack Attempts . | . . . . . Triggered . | . . . . . Disarmed . | . . . . . Reprogrammed . | . . . . . Reused . | . . . . . Traps Extracted . | . . . . . Installed . | . . . . . Triggered . | . . . . . Machines | -11 -10 -10 -10 -9 ---------- Run | Yrd Mat Min Exi Min Machines Disabled 7 | . 5 1 . 1 Max in Single Turn 1 | . 1 1 . . Machines Repaired . | . . . . . Machines Dismantled 6 | . 5 1 . . Machines Sabotaged . | . . . . . Overloaded Fab Kills . | . . . . . Hacking | -11 -10 -10 -10 -9 --------- Run | Yrd Mat Min Exi Min Machines Accessed 3 | . 2 . 1 . Terminals 2 | . 2 . . . Fabricators . | . . . . . Repair Stations . | . . . . . Recycling Units . | . . . . . Scanalyzers . | . . . . . Garrison Access . | . . . . . Total Hacks 3 | . 2 . 1 . Successful 3 | . 2 . 1 . Failed . | . . . . . Catastrophic . | . . . . . Database Lockouts . | . . . . . Manual . | . . . . . Terminals 2 | . 2 . . . Fabricators . | . . . . . Repair Stations . | . . . . . Recycling Units . | . . . . . Scanalyzers . | . . . . . Garrison Access . | . . . . . Terminal Hacks 3 | . 2 . 1 . Record 1 | . . . 1 . Locate Traps 1 | . 1 . . . Hauler Manifests 1 | . 1 . . . Fabricator Hacks . | . . . . . Repair Station Hacks . | . . . . . Recycling Unit Hacks . | . . . . . Scanalyzer . | . . . . . Garrison Access Hacks . | . . . . . Unauthorized Hacks . | . . . . . Terminals . | . . . . . Fabricators . | . . . . . Repair Stations . | . . . . . Recycling Units . | . . . . . Scanalyzers . | . . . . . Garrison Access . | . . . . . Data Cores Recovered 1 | . 1 . . . Used 1 | . 1 . . . Hacking Detections 1 | . 1 . . . Full Trace Events . | . . . . . Feedback Events . | . . . . . Feedback Blocked . | . . . . . Robot Schematics Acquired . | . . . . . Robots Built . | . . . . . Authchips . | . . . . . Time . | . . . . . Total Robot Build Rating . | . . . . . Part Schematics Acquired . | . . . . . Parts Built . | . . . . . Authchips . | . . . . . Time . | . . . . . Total Part Build Rating . | . . . . . Part Studies Acquired . | . . . . . Parts Repaired . | . . . . . Time . | . . . . . Parts Recycled . | . . . . . Recycled Matter . | . . . . . Retrieved Matter . | . . . . . Retrieved Components . | . . . . . Parts Scanalyzed . | . . . . . Part Schematics Acquired . | . . . . . Parts Damaged . | . . . . . Bothacking | -11 -10 -10 -10 -9 ------------ Run | Yrd Mat Min Exi Min Used RIF Installer . | . . . . . Robots Hacked . | . . . . . Non-combat . | . . . . . Combat . | . . . . . Robot Hacks Applied . | . . . . . Relay Couplers Released . | . . . . . Fabnet Peak Effective % . | . . . . . Robots Rewired . | . . . . . Allies Hacked . | . . . . . Hacks Repelled . | . . . . . Allies | -11 -10 -10 -10 -9 -------- Run | Yrd Mat Min Exi Min Total Allies 3 | . . . . 3 Largest Group 3 | . . . . 3 Highest-Rated Group 40 | . . . . 40 Highest-Rated Ally 16 | . . . . 16 Total Orders . | . . . . . Ally Attacks 19 | . . . . 19 Total Damage 118 | . . . . 118 Kills 1 | . . . . 1 Allies Corrupted . | . . . . . Allies Melted . | . . . . . Intel | -11 -10 -10 -10 -9 ------- Run | Yrd Mat Min Exi Min Active Infowar (turns) . | . . . . . Robot Analysis Total . | . . . . . Derelict Logs Recovered 3 | . . 1 . 2 Drone Launches . | . . . . . Drone Recoveries . | . . . . . Exploration | -11 -10 -10 -10 -9 ------------- Run | Yrd Mat Min Exi Min Turns Passed 2121 | 81 303 729 448 560 Spaces Moved 1544 | 59 172 521 445 347 Core 55 | 12 . . . 43 Treads . | . . . . . Legs . | . . . . . Wheels 1489 | 47 172 521 445 304 Hover . | . . . . . Flight . | . . . . . Fastest Speed 50 | 50 100 100 100 80 Average Speed 100 | 89 100 100 100 105 Slowest Speed 200 | 100 100 100 100 200 Overloaded Moves . | . . . . . Propulsion Burnouts . | . . . . . Robots Hopped . | . . . . . Potential Cave-ins 1 | . . . . 1 Cave-ins Triggered . | . . . . . Exploration Rate (%) 53 | 4 39 79 70 75 Regions Visited 4 Branch Regions 3 Pre-discovered Areas 1 | . . . . 1 Known Exits Taken 1 | . . . 1 . Unknown Exits Taken 3 | 1 1 1 . . Scrap Searched 3 | . . 1 . 2 Spaces Dug 10 | . . 5 . 5 Terrain Destroyed 82 | . . 5 . 77 Melee . | . . . . . Projectile 11 | . . 5 . 6 AOE 71 | . . . . 71 Terrain Rammed . | . . . . . Walls Destroyed . | . . . . . Machines Disabled . | . . . . . Actions | -11 -10 -10 -10 -9 --------- Run | Yrd Mat Min Exi Min Total 1825 | 80 218 622 448 457 Wait 107 | 2 1 47 . 57 Move 1540 | 58 171 520 444 347 Hop . | . . . . . Pick Up 17 | 7 2 7 . 1 Fast Attach 1 | . . . . 1 Attach 9 | 6 1 . . 2 Detach 1 | . . . . 1 Swap 7 | 1 1 4 . 1 Drop 3 | . . 2 . 1 Fire 82 | 6 3 27 . 46 Melee . | . . . . . Ram . | . . . . . Kick . | . . . . . Crush . | . . . . . Escape Stasis . | . . . . . Rewire 4 | . . . 4 . Trap . | . . . . . Miscellaneous 54 | . 39 15 . . Route ------- -11/Scrapyard -10/Materials -10/Mines (discovered 2 exits: [*Mat] / *Exi) -10/Exiles (discovered 2 exits: *Min x2) -9/Mines (discovered 1 exit: [*Mat]) History --------- Turn | Location | Event 9 | -11/Scrapyard | Discovered new exit (range 15) 82 | -11/Scrapyard | Entered Materials 83 | -10/Materials | Met a group of wandering Federalists 306 | -10/Materials | Build established: Mutant 371 | -10/Materials | Discovered new exit (range 11) 385 | -10/Materials | Entered Mines 397 | -10/Mines | Met a Derelict bent on vengeance 505 | -10/Mines | Found a Scrap Suit stashed away for nefarious purposes 507 | -10/Mines | Found Scrap Suit 653 | -10/Mines | Found DCF Scrap (12 items) 693 | -10/Mines | Deemed a non-threat by the Exiles lab entrance 693 | -10/Mines | Discovered new exit (range 5) 815 | -10/Mines | Received a Rocket Launcher from a helpful Derelict 855 | -10/Mines | Discovered new exit (range 7) 966 | -10/Mines | Joined a pair of Derelicts in attacking an 0b10 outpost 1114 | -10/Mines | Entered Exiles 1115 | -10/Exiles | Identified exit to Mines 1153 | -10/Exiles | Met 8R-AWN 1169 | -10/Exiles | Met EX-HEX 1245 | -10/Exiles | Met EX-DEC 1301 | -10/Exiles | Met EX-BIN 1454 | -10/Exiles | Visited The Gauntlet 1562 | -10/Exiles | Entered Mines 1616 | -9/Mines | Learned Materials stockpile data 1643 | -9/Mines | Found a damaged Exp. Sensor Array with a note attached 1648 | -9/Mines | Found Prototype Device 1677 | -9/Mines | Discovered new exit (range 10) 1692 | -9/Mines | Learned location of Storage (-9) 1698 | -9/Mines | Assisted by bots powering up and referring to "LRC-V3" 1915 | -9/Mines | Assembled infested the area 1976 | -9/Mines | Core integrity fell below 50% 1998 | -9/Mines | Lost 5 parts (1p1n1u2w) 2035 | -9/Mines | Destroyed 15 combat bots 2118 | -9/Mines | Core integrity fell below 20% 2122 | -9/Mines | Destroyed by as-34067 with Assembled Blade Last Messages --------------- 02031_ U-05 Engineer lays Concrete. 02033_ U-05 Engineer builds a Wall. 02036_ K-01 Serf collects debris. 02039_ U-05 Engineer lays Concrete. 02039_ K-01 Serf collects debris. 02040_ U-05 Engineer lays Concrete. 02041_ The unstable cave ceiling collapses. 02042_ U-05 Engineer builds a Wall. 02042_ K-01 Serf collects debris. 02043_ The unstable cave ceiling collapses. 02046_ K-01 Serf collects debris. 02047_ The unstable cave ceiling collapses. 02050_ K-01 Serf collects debris. 02054_ The unstable cave ceiling collapses. 02062_ System corrupted: Energy discharge (-20). 02081_ System corrupted: Component data lost. 02087_ Acquired 7 matter. 02111_ as-71579 destroyed. [Achievement: Exterminator] 02121_ Destroyed Asb. Hover Unit. Map ----- +----------------------------------------------------+ | ?????????????????????# ###??????# #??? | | ????????????????????## ##?????## """ #?? | | ???????????????????## #?###### """ #?? | | ??????????????????## ### """ #? | | ??????????????????# ## ##### #? | | ??????????????????# #???# ### ##? | | ??????????????????# #???# #?? #####?? | | ??????????????????###### ######???# #?? #?????? | | ???????????????????????# #???????? ?? #?????? | | #?????????????????????# ???????? ?? #?????? | | ##????????????????????# ?????? ?##?????? | | #???????????????????? ?????? ????????? | | ???????????????????? ????? #???????? | | ##?????????????????? #???? #???????? | | #########????????? #???? #???????? | | # ##??????? #???? #???????? | | # #?????? ???# ??? ????????? | | # ## ###??????# ??# ????????????? | | ##???????# ? ?????????????? | | % #????????? ## ?? ??????????????? | | = ## ##????????? #??# ??? ???????????????? | | ## # #??######????????? ????????????????? | | # # ##### ###??????? #????????????????? | | ## ## ##????? #????????????????? | | ## % ###### ##### #?????? | | ## @a #????? | | ### < #### ????? | | #?### # ## ########????????????????? | | ????##### #### #???????????????????????? | | ????????## ###??#### #???????????????????????? | | ?????????#####???????####???????????????????????? | | ????????????????????????????????????????????????? | | | | | | | | | | | | | | | | | | | | | | | | | | | | | | | | | | | | | +----------------------------------------------------+ Best States ------------- Heat Dissipation 25 Energy Generation 14 Energy Capacity 160 Matter Stores 300 Matter Capacity 300 Sight Range 16 Terrain Scan Density 10 Evasion (%) 50 Item Schematics ----------------- None Robot Schematics ------------------ None Fabricated ------------ Nothing Repaired ---------- Nothing Studied --------- None Alien Tech Used ----------------- None Achievements -------------- Exterminator Challenges ------------ None Game ------ Seed IntegratedAutogunAutohacker Manual? 0 Play Time 00:14:26 Cumulative 36.5 hours Start 2026.09.05 @ 18:13:08 End 2026.09.05 @ 18:28:01 Sessions 1 Manual Loads 0 Difficulty Rogue Special Mode None Game No. 90 Rogue 73 Adventurer 15 Explorer 2 Win Type - Total 0 Types 0/0/0/0/0/0/0/0/0/0 Lore% 27 Gallery% 27 Achievement% 23 Wizard Run 0 Options --------- Layout 1 ASCII 0 Keyboard 0 Movement Mouse Keybinds 0 Fullscreen 1 Font 24/Smallcaps Map View 50x35 Zoom Use 0% Tactical HUD 1 Map Filters NONE Filters NONE Steam 1 RUN: ca9d4fab-f845-40ae-b8d3-0c5175fdbe3a